bitfinex/quotes_BTCUSD_20241216
["timestamp","ask_amount","ask_price","bid_price","bid_amount"]
[1734318907408,0.37067164,104840.0,104810.0,0.387704]
[1734318907663,0.56143964,104840.0,104810.0,0.235048]
[1734318907835,0.37067164,104840.0,104810.0,0.235048]
[1734318908253,0.45532726,104840.0,104810.0,0.387705]
[1734318908450,0.26518446,104840.0,104820.0,0.152642]
[1734318908687,0.08623814,104840.0,104820.0,0.152642]
[1734318909267,0.17089376,104840.0,104820.0,0.152642]
[1734318910544,0.17089376,104840.0,104810.0,0.433305]
[1734318910545,0.08615194,104830.0,104810.0,0.433305]
[1734318910719,0.08615194,104830.0,104810.0,0.128]
[1734318910720,0.27693794,104830.0,104810.0,0.128]
[1734318911388,0.17080756,104830.0,104810.0,0.128]
[1734318911562,0.17080756,104830.0,104810.0,0.280656]
[1734318912759,0.57333983,104840.0,104810.0,0.433312]
[1734318913039,0.66763053,104840.0,104810.0,0.433312]
[1734318913196,0.49831928,104840.0,104810.0,0.2394683]
[1734318913350,0.49831928,104840.0,104810.0,0.305312]
[1734318913743,0.68909728,104840.0,104810.0,0.152656]
[1734318913889,0.85840853,104840.0,104810.0,0.152656]
[1734318914283,0.87987828,104840.0,104810.0,0.152656]
[1734318914487,0.08615194,104830.0,104800.0,0.35136467]
[1734318914749,0.08615194,104830.0,104800.0,0.44565537]
[1734318914881,0.08615194,104830.0,104800.0,0.59831737]
[1734318916268,0.08615194,104830.0,104800.0,0.52505537]
[1734318916474,0.57333983,104840.0,104810.0,0.152648]
[1734318916693,0.57333983,104840.0,104810.0,0.305304]
[1734318916894,0.29642089,104840.0,104820.0,0.152641]
[1734318917100,0.12710964,104840.0,104820.0,0.152641]
[1734318917544,0.12710964,104840.0,104810.0,0.457953]
[1734318917751,0.31787664,104840.0,104810.0,0.305297]
[1734318917951,0.12710964,104840.0,104810.0,0.305297]
[1734318918183,0.0001262,104840.0,104810.0,0.457946]
[1734318918401,0.0001262,104840.0,104820.0,0.4814667]
[1734318918609,0.0001262,104840.0,104830.0,0.152628]
[1734318918824,0.0001262,104840.0,104830.0,0.2934187]
[1734318919025,0.0001262,104840.0,104830.0,0.3753187]
[1734318919885,0.0001262,104840.0,104830.0,0.3920123]
[1734318920212,0.0001262,104840.0,104830.0,0.4420123]
[1734318920642,0.0001262,104840.0,104830.0,0.4253187]
[1734318920968,0.0001262,104840.0,104830.0,0.3753187]
[1734318923363,0.46774114,104860.0,104830.0,0.5279457]
[1734318923364,0.40186733,104860.0,104830.0,0.5279457]
[1734318923807,0.21113433,104860.0,104830.0,0.5279457]
[1734318923936,0.40187733,104860.0,104830.0,0.5279437]
[1734318924138,0.21113433,104860.0,104830.0,0.5279437]
[1734318924758,0.02040433,104860.0,104830.0,0.5279367]
[1734318924957,0.02040433,104860.0,104830.0,0.6805557]
[1734318925413,0.02040433,104860.0,104830.0,0.5279297]
[1734318925982,0.40187533,104860.0,104830.0,0.3753097]
[1734318926386,0.21113533,104860.0,104830.0,0.3753097]
[1734318926593,0.08615194,104850.0,104830.0,0.0819]
[1734318926802,0.08615194,104840.0,104820.0,0.09011344]
[1734318927253,0.18044264,104850.0,104820.0,0.24275144]
[1734318927450,0.26574892,104850.0,104820.0,0.39538444]
[1734318927656,0.26574892,104850.0,104820.0,0.24274644]
[1734318927860,0.37034698,104850.0,104820.0,0.39538844]
[1734318928238,0.37046391,104850.0,104820.0,0.39538844]
[1734318928436,0.27617321,104850.0,104820.0,0.48967914]
[1734318928639,0.55308415,104850.0,104820.0,0.18440414]
[1734318928858,0.55308415,104850.0,104820.0,0.1719907]
[1734318929070,0.74384715,104850.0,104820.0,0.1719907]
[1734318929267,0.55308415,104850.0,104820.0,0.1719907]
[1734318929470,0.46769594,104840.0,104810.0,0.29103784]
[1734318929705,0.08615194,104830.0,104810.0,0.3246477]
[1734318929906,0.27691894,104840.0,104830.0,0.1]
[1734318930041,0.36234215,104840.0,104830.0,0.1]
[1734318930244,0.36234215,104840.0,104810.0,0.2628191]
[1734318930652,0.55311815,104840.0,104810.0,0.2628191]
[1734318931348,0.08542321,104840.0,104810.0,0.5681191]
[1734318931557,1.0407661,104850.0,104810.0,0.5681191]
[1734318931761,0.190767,104840.0,104810.0,0.5681091]
[1734318932011,0.19909662,104840.0,104810.0,0.5681021]
[1734318932220,0.19909662,104840.0,104810.0,0.4154541]
[1734318932423,0.19909662,104840.0,104810.0,0.4620541]
[1734318932625,0.13309661,104840.0,104810.0,0.4620541]
[1734318932836,0.00832962,104840.0,104810.0,0.4620541]
[1734318933052,0.19909662,104840.0,104810.0,0.4620541]
[1734318933258,0.19909662,104840.0,104810.0,0.6147011]
[1734318933522,0.00841582,104840.0,104820.0,0.305282]
[1734318934209,0.00841582,104840.0,104830.0,0.2469187]
[1734318934622,0.00841582,104840.0,104830.0,0.0942907]
[1734318934967,0.00841582,104840.0,104830.0,0.2469187]
[1734318935578,0.00841582,104840.0,104830.0,0.3779187]
[1734318935991,0.00841582,104840.0,104830.0,0.38448774]
[1734318936803,0.00841582,104840.0,104830.0,0.3779187]
[1734318937211,0.00841582,104840.0,104830.0,0.38448774]
[1734318937387,0.00841582,104840.0,104830.0,0.3779187]
[1734318938353,0.46758494,104870.0,104830.0,0.5496127]
[1734318938570,0.00571053,104840.0,104830.0,0.3779187]
[1734318938789,0.572158,104870.0,104830.0,0.5496117]
[1734318938790,0.46686298,104870.0,104830.0,0.5496117]
[1734318938994,0.00571053,104840.0,104830.0,0.5496117]
[1734318939196,0.190731,104860.0,104830.0,0.7213087]
[1734318939403,0.00571053,104840.0,104830.0,0.3779187]
[1734318939613,0.49043889,104870.0,104830.0,0.5496167]
[1734318939614,0.59500995,104870.0,104830.0,0.5496167]
[1734318939810,0.00571053,104840.0,104830.0,0.3779187]
[1734318940318,0.59500995,104870.0,104840.0,0.171688]
[1734318940519,0.78573395,104870.0,104840.0,0.171688]
[1734318940781,0.59500995,104870.0,104840.0,0.171688]
[1734318940983,0.59500995,104870.0,104840.0,0.343377]
[1734318941152,0.40428695,104870.0,104840.0,0.515056]
[1734318941466,0.00016124,104870.0,104850.0,0.4376147]
[1734318941685,0.00313935,104870.0,104860.0,0.171657]
[1734318941877,0.00016124,104870.0,104850.0,0.6092797]
[1734318942043,0.00016124,104870.0,104850.0,0.4376147]
[1734318942459,0.00016124,104870.0,104850.0,0.6092797]
[1734318942687,0.56395735,104880.0,104850.0,0.6092797]
[1734318942889,0.56452074,104880.0,104850.0,0.6092797]
[1734318943287,0.56452074,104880.0,104850.0,0.6869797]
[1734318943765,0.37382674,104880.0,104850.0,0.6869777]
[1734318943969,0.08599337,104880.0,104860.0,0.171656]
[1734318944176,0.00056339,104880.0,104860.0,0.171656]
[1734318944763,0.19125839,104880.0,104860.0,0.171656]
[1734318945394,0.00056339,104880.0,104860.0,0.171656]
[1734318945746,8.62e-05,104870.0,104860.0,0.171656]
[1734318946562,8.62e-05,104870.0,104860.0,0.3134467]
[1734318947731,0.190688,104890.0,104860.0,0.5041767]
[1734318947882,0.00297785,104880.0,104860.0,0.50474009]
[1734318948089,0.46752794,104890.0,104860.0,0.50474009]
[1734318948090,0.57187198,104890.0,104860.0,0.50474009]
[1734318948289,0.00297785,104880.0,104860.0,0.50474009]
[1734318948524,0.57187198,104890.0,104860.0,0.50474009]
[1734318948721,0.10297784,104880.0,104830.0,0.27691994]
[1734318948898,0.10297784,104880.0,104860.0,0.190728]
[1734318948899,0.05,104880.0,104860.0,0.190728]
[1734318949102,0.05,104880.0,104770.0,0.0962]
[1734318949103,0.05,104880.0,104800.0,0.038106]
[1734318949310,0.13366339,104890.0,104830.0,0.17948255]
[1734318949518,0.18366339,104890.0,104830.0,0.17948255]
[1734318949931,0.21909337,104890.0,104830.0,0.17948255]
[1734318950138,0.45977337,104890.0,104830.0,0.17948255]
[1734318950344,0.65045337,104890.0,104830.0,0.17948255]
[1734318950723,0.73660531,104890.0,104830.0,0.17948255]
[1734318951143,0.73660531,104890.0,104830.0,0.37026755]
[1734318951548,0.190697,104880.0,104850.0,0.0752]
[1734318951834,0.37684894,104880.0,104850.0,0.16816341]
[1734318951980,0.0785,104870.0,104850.0,0.09296341]
[1734318953910,0.481402,104880.0,104850.0,0.17026341]
[1734318954494,0.00577409,104870.0,104850.0,0.17026341]
[1734318956284,0.24649109,104870.0,104840.0,0.1249]
[1734318956508,0.24649109,104870.0,104840.0,0.21785995]
[1734318956509,0.33264303,104870.0,104840.0,0.21785995]
[1734318956693,0.24649109,104870.0,104840.0,0.21785995]
[1734318956899,0.43721309,104870.0,104840.0,0.21785995]
[1734318957115,0.53150379,104870.0,104830.0,0.03445815]
[1734318957325,0.60650379,104870.0,104830.0,0.0119336]
[1734318957555,0.60650379,104870.0,104830.0,0.1073236]
[1734318957699,0.60650379,104870.0,104850.0,0.0001722]
[1734318958907,0.79722879,104870.0,104850.0,0.0001722]
[1734318959112,0.60650379,104870.0,104850.0,0.0001722]
[1734318959311,0.69265573,104870.0,104850.0,0.0001722]
[1734318960110,0.60650379,104870.0,104850.0,0.0001722]
[1734318960823,0.41578179,104870.0,104850.0,0.0001722]
[1734318961030,0.08077409,104870.0,104850.0,0.0001722]
[1734318961207,0.25228246,104870.0,104850.0,0.0001722]
[1734318961425,0.25228246,104870.0,104850.0,0.01216747]
[1734318961618,0.16692603,104870.0,104850.0,0.0001722]
[1734318961852,0.58728716,104870.0,104850.0,0.0001722]
[1734318961998,0.08615194,104860.0,104850.0,0.0001722]
[1734318962204,0.77801116,104870.0,104850.0,0.0001722]
[1734318962408,0.00577212,104860.0,104850.0,0.0001722]
[1734318964513,0.24650212,104860.0,104850.0,0.0001722]
[1734318964719,0.33191275,104860.0,104850.0,0.0001722]
[1734318964964,0.51235539,104860.0,104850.0,0.0001722]
[1734318965972,0.55965539,104860.0,104850.0,0.0001722]
[1734318966561,0.66904281,104860.0,104850.0,0.0001722]
[1734318966769,0.71557133,104860.0,104850.0,0.0001722]
[1734318967202,0.71483002,104860.0,104850.0,0.0001722]
[1734318967403,0.57486498,104860.0,104850.0,0.0001722]
[1734318967627,0.0912064,104860.0,104850.0,0.0001722]
[1734318967778,0.00479479,104860.0,104850.0,0.0001722]
[1734318967985,0.61298627,104870.0,104850.0,0.0001722]
[1734318968188,0.89798897,104870.0,104850.0,0.0001722]
[1734318968386,4e-05,104860.0,104850.0,0.0001722]
[1734318970366,0.23048264,104860.0,104850.0,0.0001722]
[1734318970727,0.54861264,104860.0,104850.0,0.0001722]
[1734318970931,0.67674769,104860.0,104850.0,0.0001722]
[1734318972885,0.6107691,104860.0,104850.0,0.0001722]
[1734318977244,0.7816444,104860.0,104850.0,0.0001722]
[1734318977453,0.972634,104860.0,104850.0,0.0001722]
[1734318977681,0.90244207,104860.0,104850.0,0.0001722]
[1734318977889,0.27692394,104840.0,104810.0,0.08308611]
[1734318978098,0.58499615,104840.0,104810.0,0.08308611]
[1734318978305,0.94679336,104840.0,104810.0,0.08308611]
[1734318978513,0.75602136,104840.0,104810.0,0.08308611]
[1734318978773,0.38480672,104840.0,104810.0,0.33003281]
[1734318979051,0.21378151,104840.0,104810.0,0.33002481]
[1734318979281,0.21378151,104840.0,104810.0,0.33018605]
[1734318979707,0.21378151,104840.0,104810.0,0.63548405]
[1734318979919,0.21378151,104840.0,104820.0,0.152641]
[1734318980287,0.21378151,104840.0,104820.0,0.2469317]
[1734318980486,0.0855126,104840.0,104820.0,0.2469317]
[1734318980688,0.0855126,104840.0,104820.0,0.0942907]
[1734318981568,0.08555627,104840.0,104820.0,0.0942907]
[1734318982173,0.08555627,104840.0,104810.0,0.40038117]
[1734318982386,0.08555627,104840.0,104810.0,0.49467187]
[1734318982538,0.21389067,104840.0,104810.0,0.49467187]
[1734318982745,0.38500321,104840.0,104810.0,0.49467387]
[1734318982992,0.21389067,104840.0,104810.0,0.49467387]
[1734318983328,0.21389067,104840.0,104810.0,0.49484667]
[1734318984506,0.30004261,104840.0,104810.0,0.49484667]
[1734318985602,0.64465515,104840.0,104810.0,0.10646356]
[1734318985781,0.38500321,104840.0,104810.0,0.25911956]
[1734318985979,0.38487579,104840.0,104810.0,0.41176556]
[1734318986687,0.21381988,104840.0,104820.0,0.2469237]
[1734318986905,0.46337579,104850.0,104820.0,0.4773557]
[1734318987116,0.21381988,104850.0,104830.0,0.152628]
[1734318987327,0.08552795,104850.0,104830.0,0.152628]
[1734318987740,0.49346218,104860.0,104830.0,0.152628]
[1734318987971,0.44846218,104860.0,104840.0,0.0942907]
[1734318988145,0.19790627,104860.0,104840.0,0.0942907]
[1734318988381,0.01961434,104860.0,104840.0,0.2469037]
[1734318989439,8.64e-05,104860.0,104830.0,0.355246]
[1734318989644,8.64e-05,104860.0,104830.0,0.4495367]
[1734318990026,8.64e-05,104860.0,104840.0,0.152613]
[1734318990806,8.64e-05,104860.0,104820.0,0.432765]
[1734318990807,0.23052904,104860.0,104820.0,0.432765]
[1734318991061,0.23052904,104860.0,104810.0,0.39791751]
[1734318991062,0.08615194,104840.0,104810.0,0.39791751]
[1734318991257,0.08615194,104840.0,104810.0,0.49220821]
[1734318991460,0.08615194,104830.0,104810.0,0.01521951]
[1734318991633,0.16295194,104830.0,104810.0,0.01521951]
[1734318992059,0.0768,104830.0,104810.0,0.16787351]
[1734318992181,0.0768,104830.0,104810.0,0.47317851]
[1734318992381,0.0768,104830.0,104810.0,0.32052151]
[1734318992789,0.22864264,104840.0,104810.0,0.32052151]
[1734318993027,0.41940864,104840.0,104810.0,0.17944984]
[1734318993434,0.41940864,104840.0,104810.0,0.33209884]
[1734318993435,0.35689525,104840.0,104810.0,0.33209884]
[1734318993635,0.1424907,104840.0,104810.0,0.33209884]
[1734318993949,0.0482,104840.0,104820.0,0.15264]
[1734318994157,0.17825261,104850.0,104820.0,0.382667]
[1734318994395,0.8881868,104860.0,104820.0,0.382666]
[1734318994622,0.95945744,104860.0,104820.0,0.382667]
[1734318994824,0.08615194,104850.0,104820.0,0.382667]
[1734318995230,0.08615194,104850.0,104820.0,0.535301]
[1734318995668,0.08615194,104850.0,104820.0,0.382666]
[1734318995867,0.84651644,104860.0,104820.0,0.230033]
[1734318996069,1.03725644,104860.0,104820.0,0.5353]
[1734318996297,1.03725544,104860.0,104820.0,0.5353]
[1734318996451,0.67551678,104860.0,104820.0,0.382666]
[1734318996781,0.5196265,104860.0,104830.0,0.171705]
[1734318997016,0.12833614,104860.0,104840.0,0.171675]
[1734318997232,8.64e-05,104860.0,104840.0,0.42565]
[1734318997442,8.64e-05,104860.0,104850.0,0.171673]
[1734318998098,8.64e-05,104860.0,104840.0,0.7900207]
[1734318998309,8.64e-05,104860.0,104840.0,0.7400207]
[1734318998488,8.64e-05,104860.0,104840.0,0.5683407]
[1734318998723,8.64e-05,104860.0,104840.0,0.34842694]
[1734318998937,8.64e-05,104860.0,104840.0,0.52010794]
[1734318999144,8.64e-05,104860.0,104840.0,0.25413624]
[1734318999373,0.08623834,104860.0,104840.0,0.00016124]
[1734318999586,8.64e-05,104860.0,104840.0,0.17185024]
[1734319000190,0.08560517,104860.0,104840.0,0.18662845]
[1734319000415,8.64e-05,104860.0,104840.0,0.18662845]
[1734319000592,8.64e-05,104860.0,104840.0,0.18662745]
[1734319000997,0.08560517,104860.0,104840.0,0.18662745]
[1734319001538,0.08560517,104860.0,104840.0,0.01493945]
[1734319001958,0.08560517,104860.0,104840.0,0.18662845]
[1734319002404,0.009,104850.0,104840.0,0.18662845]
[1734319003250,0.009,104850.0,104840.0,0.01493945]
[1734319003450,0.02860516,104860.0,104840.0,0.01493945]
[1734319004918,0.52802754,104860.0,104840.0,0.01493945]
[1734319005764,0.57692754,104860.0,104840.0,0.01493945]
[1734319006400,0.4907756,104860.0,104840.0,0.01493945]
[1734319006606,0.9386672,104860.0,104840.0,0.01493945]
[1734319006809,1.15080704,104860.0,104840.0,0.01493945]
[1734319007233,1.36455661,104860.0,104840.0,0.01493945]
[1734319008048,1.17381161,104860.0,104840.0,0.01493945]
[1734319008688,1.08480703,104860.0,104840.0,0.01493945]
[1734319009112,1.08489333,104860.0,104840.0,0.01493945]
[1734319009548,0.190748,104850.0,104840.0,0.01493945]
[1734319009779,0.0763,104850.0,104840.0,0.01493945]
[1734319011023,0.267048,104850.0,104840.0,0.00016124]
[1734319011437,0.44749064,104850.0,104840.0,0.00016124]
[1734319011646,0.83289198,104850.0,104840.0,0.00016124]
[1734319011851,1.00608961,104850.0,104840.0,0.00016124]
[1734319012061,0.87783987,104850.0,104840.0,0.00016124]
[1734319012265,0.98339181,104850.0,104840.0,0.00016124]
[1734319012480,1.0778705,104850.0,104840.0,0.00016124]
[1734319012697,0.90673228,104850.0,104840.0,0.00016124]
[1734319013338,0.82058034,104850.0,104840.0,0.00016124]
[1734319013526,1.07784863,104850.0,104840.0,0.00016124]
[1734319013736,0.90673228,104850.0,104840.0,0.00016124]
[1734319013942,0.94951517,104850.0,104840.0,0.00016124]
[1734319014604,0.69281784,104850.0,104840.0,0.00016124]
[1734319014792,0.94950476,104850.0,104840.0,0.00016124]
[1734319016450,0.94450476,104850.0,104840.0,0.00016124]
[1734319017207,0.8501495,104850.0,104840.0,0.00016124]
[1734319018241,0.9001495,104850.0,104840.0,0.00016124]
[1734319018876,0.57424258,104850.0,104840.0,0.00016124]
[1734319019093,0.88066397,104850.0,104840.0,0.00016124]
[1734319019465,0.62424258,104850.0,104840.0,0.00016124]
[1734319019672,0.71841784,104850.0,104840.0,0.00016124]
[1734319020258,0.73778909,104850.0,104840.0,0.00016124]
[1734319021168,0.73778909,104850.0,104840.0,0.00033384]
[1734319021609,0.99413603,104850.0,104840.0,0.00033384]
[1734319023553,0.1727,104820.0,104810.0,0.0001728]
[1734319023759,0.75745344,104820.0,104810.0,0.0001728]
[1734319025612,0.62934876,104820.0,104810.0,0.0001728]
[1734319026047,1.18669158,104820.0,104810.0,0.0001728]
[1734319026250,1.0585869,104820.0,104810.0,0.0001728]
[1734319026458,0.88778065,104820.0,104810.0,0.0001728]
[1734319026886,1.18648943,104820.0,104810.0,0.0001728]
[1734319027093,1.18648795,104820.0,104810.0,0.0001728]
[1734319027273,0.88778065,104820.0,104810.0,0.0001728]
[1734319027480,1.05841809,104820.0,104810.0,0.0001728]
[1734319027829,1.13638834,104820.0,104810.0,0.0001728]
[1734319028037,0.80246565,104820.0,104810.0,0.0001728]
[1734319028246,0.89516721,104820.0,104810.0,0.0001728]
[1734319028674,0.84516721,104820.0,104810.0,0.0001728]
[1734319029059,0.84516721,104820.0,104810.0,8e-07]
[1734319029439,0.94525444,104820.0,104810.0,8e-07]
[1734319029636,0.05,104780.0,104760.0,0.0819]
[1734319029777,0.3351847,104770.0,104760.0,0.0819]
[1734319030580,0.42133664,104770.0,104750.0,0.0820724]
[1734319030853,0.61223064,104770.0,104750.0,0.0820724]
[1734319031079,0.23044264,104770.0,104750.0,0.0826367]
[1734319031899,0.42133664,104770.0,104750.0,0.0826367]
[1734319032036,0.3351847,104770.0,104750.0,0.09756248]
[1734319032238,0.3351847,104770.0,104730.0,0.27937263]
[1734319032458,0.40938074,104770.0,104760.0,0.0001726]
[1734319032660,0.3357475,104770.0,104760.0,0.0001726]
[1734319032884,0.42189944,104770.0,104760.0,0.0001726]
[1734319033675,0.35589943,104770.0,104760.0,0.0001726]
[1734319035095,0.07885349,104770.0,104760.0,0.0001726]
[1734319035573,0.26974749,104770.0,104760.0,0.0001726]
[1734319035799,0.07885349,104770.0,104760.0,0.0001726]
[1734319036039,0.0005628,104770.0,104760.0,0.0464726]
[1734319036303,0.0005628,104770.0,104760.0,0.3135846]
[1734319036529,0.0005628,104770.0,104760.0,0.4078753]
[1734319037960,0.42698502,104800.0,104760.0,0.5987783]
[1734319038175,0.52127572,104800.0,104760.0,0.5993411]
[1734319038408,0.05,104790.0,104760.0,0.5993411]
[1734319038872,0.05,104790.0,104760.0,0.5993311]
[1734319039098,0.05,104790.0,104760.0,0.7902331]
[1734319039344,0.05,104790.0,104770.0,0.190892]
[1734319039560,0.26579249,104800.0,104770.0,0.190892]
[1734319041879,0.05,104790.0,104760.0,0.5993271]
[1734319042100,0.05,104790.0,104760.0,0.7902291]
[1734319042761,0.44064248,104800.0,104760.0,0.7902291]
[1734319043785,0.52679442,104800.0,104760.0,0.7902291]
[1734319043937,0.52679442,104800.0,104760.0,0.7902301]
[1734319044133,0.71764642,104800.0,104760.0,0.5993271]
[1734319044384,0.71764642,104800.0,104760.0,0.5993261]
[1734319044554,0.52679442,104800.0,104760.0,0.7902271]
[1734319044955,0.71764842,104800.0,104760.0,0.5993261]
[1734319045169,0.2851507,104790.0,104760.0,0.1232354]
[1734319045375,0.27703094,104780.0,104760.0,0.0769354]
[1734319045732,0.56220664,104780.0,104760.0,0.0769354]
[1734319045905,0.2851697,104780.0,104760.0,0.0769354]
[1734319046148,0.0942907,104780.0,104760.0,0.0769354]
[1734319046370,0.0942907,104780.0,104760.0,0.2678474]
[1734319046750,0.0942907,104780.0,104760.0,0.0769354]
[1734319047748,0.190877,104780.0,104760.0,0.0769354]
[1734319048235,0.56221064,104780.0,104760.0,0.0007354]
[1734319048439,0.37131964,104780.0,104760.0,0.0007354]
[1734319048645,0.56220664,104780.0,104760.0,0.0007354]
[1734319049299,0.190894,104770.0,104760.0,0.0007354]
[1734319050288,0.75309564,104780.0,104760.0,0.0007354]
[1734319050630,0.190894,104770.0,104760.0,0.0007354]
[1734319052097,0.27704594,104770.0,104760.0,0.0007354]
[1734319052507,0.37133664,104770.0,104760.0,0.0007354]
[1734319052743,0.44733664,104770.0,104760.0,0.0007354]
[1734319052886,0.53245567,104770.0,104760.0,0.0007354]
[1734319053509,0.34156167,104770.0,104760.0,0.0007354]
[1734319053802,0.53245567,104770.0,104760.0,0.0007354]
[1734319054372,0.66013421,104770.0,104760.0,0.0007354]
[1734319054975,0.67953421,104770.0,104760.0,0.0007354]
[1734319055228,1.15042608,104770.0,104760.0,0.0007354]
[1734319055450,0.87857228,104770.0,104760.0,0.0007354]
[1734319055864,0.79357998,104770.0,104760.0,0.0007354]
[1734319056717,1.00688429,104770.0,104760.0,0.0007354]
[1734319056922,1.00688895,104770.0,104760.0,0.0007354]
[1734319057074,1.00688938,104770.0,104760.0,0.0007354]
[1734319057256,1.10106464,104770.0,104760.0,0.0007354]
[1734319057678,0.97326685,104770.0,104760.0,0.0007354]
[1734319058235,0.80277342,104770.0,104760.0,0.0007354]
[1734319058428,0.97324233,104770.0,104760.0,0.0007354]
[1734319058562,0.80277342,104770.0,104760.0,0.0007354]
[1734319059171,0.80277342,104770.0,104720.0,0.32899852]
[1734319059472,0.74422585,104750.0,104720.0,0.32899852]
[1734319059672,0.83851655,104750.0,104720.0,0.32899852]
[1734319060716,0.39355742,104750.0,104720.0,0.13802352]
[1734319061028,0.39355742,104750.0,104720.0,0.09072352]
[1734319061029,0.46806994,104740.0,104720.0,0.09072352]
[1734319061232,0.381918,104740.0,104720.0,0.09072352]
[1734319061449,0.190958,104740.0,104720.0,0.09072352]
[1734319062070,0.91451255,104750.0,104720.0,0.09072352]
[1734319062272,0.72356855,104750.0,104720.0,0.28170752]
[1734319062481,0.190949,104740.0,104720.0,0.09072352]
[1734319063545,0.72356855,104750.0,104720.0,0.09072352]
[1734319063744,0.190949,104740.0,104720.0,0.09072352]
[1734319064711,0.38360661,104760.0,104720.0,0.31746616]
[1734319064924,0.08524591,104760.0,104740.0,0.190936]
[1734319065118,0.40458158,104770.0,104750.0,0.0784]
[1734319065351,0.0948535,104770.0,104750.0,0.0784]
[1734319065549,0.0948535,104770.0,104750.0,0.269329]
[1734319065550,0.0005628,104770.0,104750.0,0.269329]
[1734319067090,0.1914578,104770.0,104750.0,0.0784]
[1734319067440,0.0005628,104770.0,104750.0,0.269329]
[1734319068523,0.6959839,104780.0,104750.0,0.0784]
[1734319068524,0.69356882,104780.0,104750.0,0.0784]
[1734319068727,0.78785952,104780.0,104750.0,0.0789628]
[1734319069259,0.59696852,104780.0,104750.0,0.0789628]
[1734319069547,0.27704594,104770.0,104750.0,0.0789628]
[1734319069757,0.190894,104770.0,104750.0,0.0789628]
[1734319070511,0.08615194,104760.0,104750.0,0.0005628]
[1734319070731,0.08615194,104760.0,104750.0,0.0007356]
[1734319070994,0.56224364,104770.0,104750.0,0.0007356]
[1734319071144,0.75314964,104770.0,104750.0,0.0007356]
[1734319071542,0.55891264,104770.0,104750.0,0.0007356]
[1734319071955,0.4727607,104770.0,104750.0,0.0007356]
[1734319072178,0.2818547,104770.0,104750.0,0.0007356]
[1734319072557,0.4727587,104770.0,104750.0,0.0007356]
[1734319073243,0.74981764,104770.0,104750.0,0.0007356]
[1734319073414,0.44834664,104770.0,104750.0,0.0007356]
[1734319073618,0.63925164,104770.0,104750.0,0.0007356]
[1734319074142,0.83015964,104770.0,104750.0,0.0007356]
[1734319074348,0.37135464,104760.0,104750.0,0.0007356]
[1734319074544,0.0942907,104760.0,104750.0,0.0007356]
[1734319075107,0.2852027,104760.0,104750.0,0.0007356]
[1734319076852,0.0942907,104760.0,104750.0,0.0007356]
[1734319077206,0.31717464,104780.0,104750.0,0.0007356]
[1734319077415,8.64e-05,104780.0,104760.0,0.268595]
[1734319077636,8.64e-05,104780.0,104770.0,0.190894]
[1734319077840,0.24781479,104800.0,104770.0,0.190894]
[1734319078086,0.2851327,104800.0,104770.0,0.381775]
[1734319078496,0.37056155,104800.0,104770.0,0.381775]
[1734319078866,0.64756149,104800.0,104760.0,0.7919977]
[1734319079070,0.83841749,104800.0,104760.0,0.7919977]
[1734319079323,0.2851487,104790.0,104760.0,0.506802]
[1734319079502,0.37130064,104790.0,104760.0,0.506802]
[1734319079697,0.56216664,104790.0,104760.0,0.506802]
[1734319080580,0.75303764,104790.0,104760.0,0.315899]
[1734319080926,0.83513764,104790.0,104760.0,0.315899]
[1734319081495,0.64426664,104790.0,104760.0,0.33442106]
[1734319081950,0.83513664,104790.0,104760.0,0.33442106]
[1734319083156,0.64426664,104790.0,104760.0,0.33442106]
[1734319083379,0.57826663,104790.0,104760.0,0.33442106]
[1734319083584,0.45340864,104790.0,104760.0,0.33442106]
[1734319083785,0.64427564,104790.0,104760.0,0.33442106]
[1734319083987,0.83514864,104790.0,104760.0,0.33442106]
[1734319084514,0.190876,104780.0,104760.0,0.33442106]
[1734319084655,0.190876,104780.0,104750.0,0.0784356]
[1734319084656,0.46795194,104770.0,104750.0,0.0784356]
[1734319084855,0.46795194,104770.0,104750.0,0.0007356]
[1734319085230,0.0942907,104780.0,104750.0,0.1916536]
[1734319085231,0.37060655,104780.0,104750.0,0.1916536]
[1734319085380,0.2851777,104780.0,104750.0,0.5734926]
[1734319085591,0.2851777,104780.0,104750.0,0.3825716]
[1734319085794,0.2851777,104780.0,104760.0,0.0001728]
[1734319085795,0.2851757,104780.0,104760.0,0.0001728]
[1734319085997,0.4760627,104780.0,104760.0,0.0001728]
[1734319086616,0.190894,104770.0,104760.0,0.0001728]
[1734319088372,0.64765072,104780.0,104760.0,0.0001728]
[1734319088935,0.190894,104770.0,104760.0,0.0001728]
[1734319098497,0.68978053,104780.0,104760.0,0.0001728]
[1734319099152,0.190894,104770.0,104760.0,0.0001728]
[1734319101283,0.45093664,104770.0,104760.0,0.0001728]
[1734319101628,0.53645166,104770.0,104760.0,0.0001728]
[1734319102224,0.45029972,104770.0,104760.0,0.0001728]
[1734319102424,0.89278759,104780.0,104760.0,0.0001728]
[1734319102624,0.49896325,104780.0,104760.0,0.2471928]
[1734319102828,0.08551502,104780.0,104760.0,0.4190038]
[1734319103109,0.4615884,104790.0,104770.0,0.171804]
[1734319103288,0.4615884,104790.0,104760.0,0.4669958]
[1734319103289,0.31426931,104790.0,104760.0,0.4669958]
[1734319103634,0.29486931,104790.0,104760.0,0.4669958]
[1734319103838,0.48573741,104790.0,104760.0,0.4669958]
[1734319104038,0.57188935,104790.0,104760.0,0.219813]
[1734319104150,0.76275935,104790.0,104760.0,0.391634]
[1734319104820,0.190876,104780.0,104760.0,0.048]
[1734319105038,0.271376,104780.0,104750.0,0.5642216]
[1734319105292,0.271376,104780.0,104760.0,0.17182]
[1734319105633,0.0805,104780.0,104760.0,0.34363]
[1734319106567,0.45376582,104790.0,104770.0,0.02769749]
[1734319107355,0.3682497,104790.0,104770.0,0.1718]
[1734319107631,0.45376582,104790.0,104770.0,0.1718]
[1734319107886,0.1636407,104750.0,104740.0,0.27644012]
[1734319108086,0.1636407,104750.0,104740.0,0.28457888]
[1734319108474,0.09764069,104750.0,104740.0,0.28457888]
[1734319109345,0.09820314,104750.0,104740.0,0.28457888]
[1734319111061,0.09820314,104750.0,104740.0,0.19028818]
[1734319113507,0.03220313,104750.0,104740.0,0.19028818]
[1734319118440,0.03220313,104750.0,104740.0,0.28457888]
[1734319119825,0.03220313,104750.0,104740.0,0.37073082]
[1734319120028,0.03220313,104750.0,104740.0,0.28457888]
[1734319120645,0.03220313,104750.0,104740.0,0.3028698]
[1734319123164,0.03220313,104750.0,104740.0,0.38826302]
[1734319123377,0.03220313,104750.0,104740.0,0.52441496]
[1734319123616,0.03220313,104750.0,104740.0,0.76960479]
[1734319123814,0.03220313,104750.0,104740.0,0.94056404]
[1734319124235,0.03228953,104750.0,104740.0,0.92227312]
[1734319125391,0.03228953,104750.0,104740.0,0.71512118]
[1734319128484,0.04577592,104780.0,104760.0,0.17181]
[1734319128760,0.0459,104770.0,104760.0,0.17197927]
[1734319130860,0.0459,104770.0,104750.0,0.171827]
[1734319131063,0.04606874,104770.0,104750.0,0.171827]